bitfinex-derivatives/quotes_ETHF0:USTF0_20251009
["timestamp","ask_amount","ask_price","bid_price","bid_amount"]
[1759968917384,0.00205026,4520.0,4519.9,1.17191]
[1759968917580,0.00205026,4520.0,4519.9,6.39291]
[1759968917783,3.2078,4521.5,4521.0,0.1237]
[1759968917981,3.2078,4521.5,4521.4,0.39798]
[1759968918181,3.2078,4521.5,4521.4,1.17178]
[1759968918386,6.08627371,4521.5,4521.4,1.17178]
[1759968918786,6.08884228,4521.5,4521.4,1.1745676]
[1759968918988,2.88104228,4521.5,4521.4,1.1745676]
[1759968919284,0.00256857,4521.5,4521.4,6.1745676]
[1759968921997,0.00256857,4521.5,4521.4,6.3955676]
[1759968922285,3.2078,4522.6,4522.4,0.39789]
[1759968922482,3.2078,4522.6,4522.5,1.1185]
[1759968922680,3.60568,4522.6,4522.5,1.1185]
[1759968922990,6.50070676,4522.6,4522.5,1.1185]
[1759968923391,6.1053947,4522.6,4522.5,1.1185]
[1759968925390,6.1053947,4522.6,4522.5,0.8975]
[1759968925596,6.1053947,4522.6,4522.5,1.1185]
[1759968925797,6.1036947,4522.6,4522.5,1.1185]
[1759968926093,6.1070947,4522.6,4522.5,1.1185]
[1759968926394,0.39792,4522.1,4522.0,0.1237]
[1759968926596,3.60912,4522.1,4522.0,0.5648]
[1759968926787,6.54513845,4522.1,4522.0,0.5648]
[1759968926987,6.54513845,4522.1,4522.0,0.9049]
[1759968928395,6.54623845,4522.1,4522.0,0.6848]
[1759968928893,6.54513845,4522.1,4522.0,0.6848]
[1759968929685,6.54513845,4522.1,4522.0,0.6839]
[1759968929993,0.0011,4521.5,4521.4,0.0027876]
[1759968930196,3.2123,4521.5,4521.4,0.0027876]
[1759968930391,11.02407955,4521.5,4521.4,0.0027876]
[1759968930791,6.02297955,4521.5,4521.4,0.3428876]
[1759968932401,6.02407955,4521.5,4521.4,0.0027876]
[1759968934300,6.02407955,4521.5,4521.4,0.3428876]
[1759968935003,6.02297955,4521.5,4521.4,0.3428876]
[1759968936698,6.02297955,4521.5,4521.4,0.5629876]
[1759968936898,6.01957955,4521.5,4521.4,0.7765876]
[1759968937399,6.02127955,4521.5,4521.4,0.7765876]
[1759968938292,6.02297955,4521.5,4521.4,0.7765876]
[1759968938497,6.02407955,4521.5,4521.4,0.3428876]
[1759968938703,6.02407955,4521.5,4521.4,0.0027876]
[1759968939904,6.02407955,4521.5,4521.4,0.3338876]
[1759968940101,6.02297955,4521.5,4521.4,0.3338876]
[1759968940803,6.02387955,4521.5,4521.4,0.3338876]
[1759968941004,6.02387955,4521.5,4521.4,0.0027876]
[1759968941503,6.41754955,4521.5,4521.4,0.3338876]
[1759968941804,6.41904955,4521.5,4521.4,0.7557876]
[1759968942202,6.42054955,4521.5,4521.4,0.7557876]
[1759968942902,7.22537842,4521.5,4521.4,0.0027876]
[1759968943097,7.73758037,4521.5,4521.4,0.0027876]
[1759968944101,0.40125,4520.6,4520.5,0.3454]
[1759968944296,0.39807,4520.5,4520.1,0.221]
[1759968944501,0.0032,4520.2,4520.1,0.8451]
[1759968944804,2.8359451,4520.2,4520.1,1.169]
[1759968945203,2.8359451,4520.2,4520.1,1.17071686]
[1759968948509,2.8359451,4520.2,4520.1,1.39171686]
[1759968949207,3.2350351,4520.2,4520.1,0.32561686]
[1759968949709,3.2340351,4520.2,4520.1,0.32561686]
[1759968949909,3.2340351,4520.2,4520.1,0.54731686]
[1759968950504,2.8327451,4520.2,4520.1,0.77261686]
[1759968950815,0.39796,4521.6,4521.5,0.9007]
[1759968951000,0.39798,4521.4,4521.3,0.2217]
[1759968951206,0.7479,4520.9,4520.8,1.02552887]
[1759968951407,3.9557,4520.9,4520.8,1.50842887]
[1759968951707,6.7862917,4520.9,4520.8,1.73372887]
[1759968951908,6.0383917,4520.9,4520.8,1.73372887]
[1759968952300,6.5676917,4520.9,4520.8,1.79572887]
[1759968952605,6.2566917,4520.9,4520.8,1.79572887]
[1759968954517,6.5676917,4520.9,4520.8,1.79572887]
[1759968954818,6.7862917,4520.9,4520.8,1.57472887]
[1759968955009,6.7862917,4520.9,4520.8,0.9919]
[1759968955314,6.7862917,4520.9,4520.8,0.7709]
[1759968955516,6.7862917,4520.9,4520.8,0.9919]
[1759968955906,0.311,4520.8,4520.4,0.3239]
[1759968956111,0.7479,4520.2,4520.1,0.54731686]
[1759968956314,0.7479,4520.2,4520.1,0.97961686]
[1759968956515,3.57886644,4520.2,4520.1,1.37771686]
[1759968956910,3.26786644,4520.2,4520.1,1.37771686]
[1759968957929,3.57886644,4520.2,4520.1,1.37771686]
[1759968958135,3.57886644,4520.2,4520.1,1.17071686]
[1759968958423,3.57886644,4520.2,4520.1,1.39171686]
[1759968960428,2.83096644,4520.2,4520.1,1.39171686]
[1759968960926,1.14595,4520.6,4520.5,0.39806]
[1759968961230,3.58332292,4520.6,4520.5,1.96848887]
[1759968961432,3.58332292,4520.6,4520.5,2.19378887]
[1759968961626,0.39808,4520.3,4520.2,1.12772887]
[1759968961922,1.14599,4520.2,4520.1,0.39981686]
[1759968962130,1.65695831,4520.2,4520.1,0.39981686]
[1759968962323,4.52809732,4520.2,4520.1,0.39981686]
[1759968963622,4.01712901,4520.2,4520.1,0.39981686]
[1759968963821,3.61903901,4520.2,4520.1,0.94541686]
[1759968965827,3.61903901,4520.2,4520.1,1.17071686]
[1759968966034,2.87113901,4520.2,4520.1,1.39171686]
[1759968969734,3.49382901,4520.2,4520.1,1.39171686]
[1759968969932,4.01662901,4520.2,4520.1,0.44441686]
[1759968970938,4.01662901,4520.2,4520.1,0.22341686]
[1759968971140,4.01662901,4520.2,4520.1,0.44441686]
[1759968971430,3.80732901,4520.2,4520.1,1.38371686]
[1759968971636,2.87113901,4520.2,4520.1,1.16271686]
[1759968972138,2.87113901,4520.2,4520.1,1.38371686]
[1759968972432,0.39805,4520.6,4520.5,0.52166]
[1759968972433,0.62265,4520.6,4520.5,0.52166]
[1759968972639,0.2246,4520.6,4520.5,2.30468887]
[1759968972938,3.05744765,4520.6,4520.5,2.30468887]
[1759968973237,2.83284765,4520.6,4520.5,2.30468887]
[1759968973428,2.83284765,4520.6,4520.5,3.10851774]
[1759968973625,3.2078,4520.8,4520.7,1.15624]
[1759968974029,6.07827752,4520.8,4520.7,1.15624]
[1759968975037,6.47631752,4520.8,4520.7,1.15624]
[1759968975435,6.07827752,4520.8,4520.7,1.15624]
[1759968977136,3.2078,4521.3,4521.2,0.8346]
[1759968977341,3.2078,4521.3,4521.2,2.18102887]
[1759968977536,6.1293738,4521.3,4521.2,2.18102887]
[1759968977844,3.2078,4521.8,4521.7,0.39796]
[1759968978140,6.1293738,4521.8,4521.7,2.18098887]
[1759968978531,2.9215738,4521.8,4521.7,2.18098887]
[1759968979242,3.6689738,4521.8,4521.7,2.18098887]
[1759968979439,2.9215738,4521.8,4521.7,2.18098887]
[1759968982639,1.31280918,4524.0,4523.4,0.39781]
[1759968982942,0.1242,4524.0,4523.4,2.22646774]
[1759968983146,0.1242,4524.0,4523.4,2.00546774]
[1759968983343,0.1242,4524.0,4523.4,2.22646774]
[1759968983745,0.12608266,4523.5,4523.4,2.22822678]
[1759968983942,0.12608266,4523.5,4523.4,7.22822678]
[1759968985850,0.12608266,4523.5,4523.4,8.38953683]
[1759968989242,0.00188266,4523.5,4523.4,3.38953683]
[1759968989654,0.1242,4524.0,4523.8,0.39777]
[1759968989953,0.4377,4524.0,4523.9,2.98996779]
[1759968990256,0.1242,4524.0,4523.9,2.98996779]
[1759968990553,0.43924878,4524.0,4523.9,2.98996779]
[1759968993554,0.00154878,4524.0,4523.9,2.98996779]
[1759968993856,0.4377,4524.5,4524.0,0.99439]
[1759968994153,0.4377,4524.5,4524.4,3.16668779]
[1759968994358,0.4377,4524.5,4524.4,3.38768779]
[1759968994857,0.12681963,4524.5,4524.4,3.38768779]
[1759968995753,0.44031963,4524.5,4524.4,3.38768779]
[1759968999061,0.44031963,4524.5,4524.4,3.16668779]
[1759968999260,0.44031963,4524.5,4524.4,3.38768779]
[1759968999861,0.44031963,4524.5,4524.4,0.61872]
[1759969000163,0.12681963,4524.5,4524.4,0.61872]
[1759969000463,0.00261963,4524.5,4524.4,0.61872]
[1759969001157,0.13041963,4524.5,4524.4,0.61872]
[1759969001857,0.44701963,4524.5,4524.4,0.39772]
[1759969002053,0.66681963,4524.5,4524.4,0.39772]
[1759969002250,0.4444,4524.0,4523.9,0.39776]
[1759969002561,0.4444,4524.0,4523.9,0.61876]
[1759969002756,0.4444,4524.0,4523.9,0.39776]
[1759969002960,0.8723,4524.0,4523.9,0.39776]
[1759969003252,3.69800026,4524.0,4523.9,0.61876]
[1759969005559,3.69800026,4524.0,4523.9,0.39776]
[1759969005759,3.69800026,4524.0,4523.9,0.61876]
[1759969005961,3.69800026,4524.0,4523.9,1.5476048]
[1759969006262,3.69800026,4524.0,4523.9,1.1498448]
[1759969007066,3.69800026,4524.0,4523.9,0.9288448]
[1759969007363,3.69800026,4524.0,4523.9,1.1498448]
[1759969007768,3.69800026,4524.0,4523.9,1.5476048]
[1759969008064,4.09575026,4524.0,4523.9,1.5476048]
[1759969008764,1.14726,4523.9,4523.8,3.2078]
[1759969008963,1.14726,4523.9,4523.8,3.4288]
[1759969009166,3.62475107,4523.9,4523.8,3.82657]
[1759969009662,4.02251107,4523.9,4523.8,3.60557]
[1759969009860,4.02251107,4523.9,4523.8,3.4288]
[1759969010464,4.02251107,4523.9,4523.8,3.82657]
[1759969010666,3.62475107,4523.9,4523.8,3.82657]
[1759969010864,4.02251107,4523.9,4523.8,3.82657]
[1759969011064,4.02251107,4523.9,4523.8,3.4288]
[1759969011266,4.02251107,4523.9,4523.8,3.82657]
[1759969012068,4.02251107,4523.9,4523.8,3.60557]
[1759969012366,4.52175886,4523.9,4523.8,3.82657]
[1759969012667,4.02251107,4523.9,4523.8,3.82657]
[1759969013766,3.62475107,4523.9,4523.8,0.61877]
[1759969014064,1.14728,4523.7,4523.6,0.9288448]
[1759969014367,4.48572601,4523.7,4523.6,1.5476348]
[1759969016172,3.98951219,4523.7,4523.6,1.5476348]
[1759969016767,1.2753,4523.5,4523.4,0.00175904]
[1759969016976,1.2753,4523.5,4523.4,0.62056904]
[1759969017163,4.18922783,4523.5,4523.4,0.62056904]
[1759969018561,4.68489961,4523.5,4523.4,0.22275904]
[1759969018964,4.18922783,4523.5,4523.4,0.22275904]
[1759969019772,3.79142783,4523.5,4523.4,0.62056904]
[1759969021570,0.4486,4523.5,4523.4,1.54941384]
[1759969021869,0.4486,4523.5,4523.4,0.62056904]
[1759969023879,0.8775,4523.5,4523.4,0.62056904]
[1759969024182,3.8101936,4523.5,4523.4,0.62056904]
[1759969024370,3.8101936,4523.5,4523.4,0.39956904]
[1759969024572,3.8101936,4523.5,4523.4,0.62056904]
[1759969026172,3.8101936,4523.5,4523.4,0.39956904]
[1759969026370,4.2079936,4523.5,4523.4,0.39956904]
[1759969026571,4.2079936,4523.5,4523.4,0.62056904]
[1759969026979,3.8101936,4523.5,4523.4,0.62056904]
[1759969027681,4.2079936,4523.5,4523.4,0.62056904]
[1759969029276,4.2079936,4523.5,4523.4,0.39956904]
[1759969029476,4.2079936,4523.5,4523.4,0.62056904]
[1759969030278,4.2079936,4523.5,4523.4,0.00175904]
[1759969032183,4.2079936,4523.5,4523.4,0.39956904]
[1759969032478,4.2079936,4523.5,4523.4,0.00175904]
[1759969035670,4.2079936,4523.5,4523.4,0.39956904]
[1759969036271,3.3812936,4523.5,4523.4,1.32841384]
[1759969036475,3.5906936,4523.5,4523.4,1.32841384]
[1759969036777,3.8076936,4523.5,4523.4,1.32841384]
[1759969040970,3.5906936,4523.5,4523.4,1.32841384]
[1759969041177,3.8076936,4523.5,4523.4,1.32841384]
[1759969041781,3.8076936,4523.5,4523.4,0.93060384]
[1759969041985,3.8076936,4523.5,4523.4,0.00175904]
[1759969041986,4.2054936,4523.5,4523.4,0.00175904]
[1759969043085,4.70248629,4523.5,4523.4,0.00175904]
[1759969051898,0.8741,4522.5,4522.4,0.39789]
[1759969052196,3.72570971,4522.5,4522.4,0.61889]
[1759969052894,3.72570971,4522.5,4522.4,0.62125974]
[1759969053697,3.72570971,4522.5,4522.4,0.40025974]
[1759969053897,3.72570971,4522.5,4522.4,0.62125974]
[1759969055997,3.72570971,4522.5,4522.4,0.40025974]
[1759969056197,3.72570971,4522.5,4522.4,0.62125974]
[1759969056793,3.50870971,4522.5,4522.4,0.40025974]
[1759969056998,3.29930971,4522.5,4522.4,0.62125974]
[1759969058302,0.4477,4522.5,4522.4,8.82905974]
[1759969059094,0.4477,4522.5,4522.4,10.42047841]
[1759969061999,0.4477,4522.5,4522.4,11.22352623]
[1759969062301,0.4477,4522.5,4522.4,6.22352623]
[1759969062496,0.4477,4522.5,4522.4,11.22352623]
[1759969062701,0.658,4522.5,4522.4,6.22352623]
[1759969063803,0.658,4522.5,4522.4,4.63210756]
[1759969068512,0.4477,4522.5,4522.4,4.63210756]
[1759969068904,0.6681,4522.5,4522.4,4.63210756]
[1759969069707,0.6681,4522.5,4522.4,6.22352623]
[1759969069907,0.4477,4522.5,4522.4,4.63210756]
[1759969070106,0.4477,4522.5,4522.4,6.22352623]
[1759969074916,0.4477,4522.5,4522.4,4.63210756]
[1759969075705,0.08833268,4522.5,4522.4,4.63210756]
[1759969075911,0.22153268,4522.5,4522.4,4.63210756]
[1759969077121,0.1316,4523.0,4522.9,0.39785]
[1759969077321,0.1316,4523.0,4522.9,1.42189782]
[1759969077614,2.97902645,4523.0,4522.9,1.42189782]
[1759969077814,3.28712645,4523.0,4522.9,4.62969782]
[1759969078611,2.97902645,4523.0,4522.9,4.62969782]
[1759969078809,3.15552645,4523.0,4522.9,4.62969782]
[1759969079013,3.28872645,4523.0,4522.9,4.62969782]
[1759969079908,2.84742645,4523.0,4522.9,4.62969782]
[1759969080114,3.15552645,4523.0,4522.9,4.62969782]
[1759969080316,0.128,4523.5,4523.4,0.39781]
[1759969080520,0.128,4523.5,4523.4,2.22490564]
[1759969081018,0.4361,4523.5,4523.4,2.22490564]
[1759969081625,0.1278,4524.0,4523.9,0.39776]
[1759969081817,0.6563,4524.0,4523.9,1.42180782]
[1759969082613,0.4359,4524.0,4523.9,1.42180782]
[1759969082925,3.2078,4524.2,4524.1,0.39774]
[1759969083117,0.1332,4525.0,4524.3,0.39773]
[1759969083423,0.00261963,4524.5,4524.4,1.02404782]
[1759969083722,9.63e-06,4524.5,4524.4,1.02404782]
[1759969086721,0.3081,4525.4,4524.6,0.99426]
[1759969087019,0.4413,4526.0,4525.9,0.39759]
[1759969087214,0.4413,4526.5,4526.4,0.39754]
[1759969087420,0.6617,4526.5,4526.4,0.61854]
[1759969087619,0.888,4526.5,4526.4,1.42158782]
[1759969087826,0.88964815,4526.5,4526.4,1.42325345]
[1759969088118,0.66334815,4526.5,4526.4,1.42325345]
[1759969088320,0.00164815,4526.5,4526.4,1.42325345]
[1759969088529,0.3081,4526.9,4526.8,0.39751]
[1759969088726,0.1332,4527.0,4526.8,1.42155782]
[1759969089123,0.4625,4527.0,4526.8,1.20055782]
[1759969089320,0.3293,4526.9,4526.8,1.20055782]
[1759969089617,0.33124609,4526.9,4526.8,1.42155782]
[1759969092230,0.00194609,4526.9,4526.8,4.62935782]
[1759969094332,0.33124609,4526.9,4526.8,4.62935782]
[1759969095925,0.00194609,4526.9,4526.8,4.62935782]
[1759969096122,0.3293,4527.3,4527.2,0.39747]
[1759969096329,0.4625,4527.5,4527.4,0.39745]
[1759969096628,0.022,4527.9,4527.4,0.39745]
[1759969096629,0.3293,4527.8,4527.4,1.42149782]
[1759969096833,0.3293,4527.8,4527.7,1.20047782]
[1759969097026,0.3293,4527.8,4527.7,1.42147782]
[1759969097331,0.33159435,4527.8,4527.7,1.42147782]
[1759969097726,0.00229435,4527.8,4527.7,1.42147782]
[1759969098027,0.33159435,4527.8,4527.7,1.42147782]
[1759969098330,0.00229435,4527.8,4527.7,1.42147782]
[1759969100331,0.75439435,4527.8,4527.7,0.39743]
[1759969100533,0.75439435,4527.8,4527.7,1.42147782]
[1759969100731,0.75439435,4527.8,4527.7,1.20047782]
[1759969100929,0.75439435,4527.8,4527.7,1.42147782]
[1759969102333,3.66657489,4527.8,4527.7,1.20047782]
[1759969102526,3.66657489,4527.8,4527.7,1.42147782]
[1759969102724,3.66657489,4527.8,4527.7,1.20047782]
[1759969103826,3.66657489,4527.8,4527.7,1.42147782]
[1759969104021,3.66657489,4527.8,4527.7,1.20047782]
[1759969104224,3.66657489,4527.8,4527.7,1.42147782]
[1759969104926,3.66657489,4527.8,4527.7,1.20047782]
[1759969105121,3.66657489,4527.8,4527.7,1.42147782]
[1759969106128,0.5473,4527.4,4527.1,0.99371]
[1759969106327,0.3293,4527.3,4527.2,0.61847]
[1759969107327,0.3293,4527.3,4527.2,1.42151782]
[1759969109228,0.7521,4527.3,4527.2,1.42151782]
[1759969109435,0.7521,4527.3,4527.2,1.20051782]
[1759969109635,0.7521,4527.3,4527.2,1.42151782]
[1759969111437,0.3293,4527.3,4527.2,1.42151782]
[1759969113338,0.5473,4527.3,4527.2,1.42151782]
[1759969115240,0.3293,4527.3,4527.2,1.42151782]
[1759969115839,0.3293,4527.3,4527.2,2.22456564]
[1759969116034,0.4532,4527.5,4527.4,0.39745]
[1759969117139,0.4532,4527.5,4527.4,1.20049782]
[1759969117538,0.1239,4527.5,4527.4,1.20049782]
[1759969117740,3.53939435,4527.8,4527.7,0.39743]
[1759969117938,4.03118476,4527.8,4527.7,1.42147782]
[1759969118146,6.85881868,4527.8,4527.7,1.42147782]
[1759969120547,7.07681868,4527.8,4527.7,1.42147782]
[1759969120848,7.28891868,4527.8,4527.7,1.42147782]
[1759969121344,7.28891868,4527.8,4527.7,1.20047782]
[1759969121646,7.28891868,4527.8,4527.7,1.42147782]
[1759969122846,7.28891868,4527.8,4527.7,1.20047782]
[1759969123145,7.28891868,4527.8,4527.7,1.42147782]
[1759969123855,7.28891868,4527.8,4527.7,0.61843]
[1759969124543,0.39744,4527.6,4527.4,0.39745]
[1759969124746,0.8886,4527.0,4526.9,0.92743944]
[1759969124950,0.8886,4527.0,4526.9,1.14843944]
[1759969125254,0.462,4527.0,4526.9,1.54593944]
[1759969128152,0.00229435,4527.8,4527.7,0.61843]
[1759969128447,0.33129435,4527.8,4527.7,0.61843]
[1759969128948,0.75789435,4527.8,4527.7,0.39743]
[1759969129252,0.75789435,4527.8,4527.7,0.61843]
[1759969129448,0.54589435,4527.8,4527.7,0.61843]
[1759969129754,0.33129435,4527.8,4527.7,0.61843]
[1759969134050,0.00229435,4527.8,4527.7,0.61843]
[1759969139655,0.022,4527.9,4527.8,0.39742]
[1759969139952,0.022,4527.9,4527.8,2.89346917]
[1759969140356,0.329,4528.7,4528.6,0.39735]
[1759969140553,0.329,4528.7,4528.6,1.54578944]
[1759969140759,0.00261344,4528.7,4528.6,1.54578944]
[1759969141547,0.33161344,4528.7,4528.6,1.54578944]
[1759969141955,0.00261344,4528.7,4528.6,39.21658944]
[1759969142254,0.462,4529.5,4529.4,0.39728]
[1759969142454,0.462,4529.5,4529.4,1.54571944]
[1759969143255,0.46428796,4529.5,4529.4,1.54571944]
[1759969143856,0.67888796,4529.5,4529.4,1.32471944]
[1759969144157,8.36655908,4529.5,4529.1,0.3973]
[1759969144460,0.7556,4529.2,4529.1,0.3973]
[1759969144659,0.133,4528.5,4528.1,1.58608364]
[1759969144851,0.5436,4528.4,4528.2,0.221]
[1759969145056,3.35341536,4528.4,4528.3,0.92743944]
[1759969145357,3.56541536,4528.4,4528.3,1.32480944]
[1759969151667,3.35341536,4528.4,4528.3,1.32480944]
[1759969151967,3.13881536,4528.4,4528.3,1.32480944]
[1759969152169,3.34421536,4528.4,4528.3,1.32480944]
[1759969152563,3.55931536,4528.4,4528.3,1.32480944]
[1759969155671,3.13881536,4528.4,4528.3,1.32480944]
[1759969156164,3.34421536,4528.4,4528.3,1.32480944]
[1759969156366,3.55931536,4528.4,4528.3,1.32480944]
[1759969156965,0.133,4528.5,4528.3,6.32480944]
[1759969157364,0.3278,4528.8,4528.7,0.39734]
[1759969157560,0.133,4529.0,4528.9,0.39732]
[1759969157766,0.4608,4529.0,4528.9,0.39732]
[1759969159072,0.3278,4529.4,4529.3,0.39729]
[1759969159264,0.3278,4529.4,4529.3,4.75352944]
[1759969159570,0.13528796,4529.5,4529.3,4.75352944]
[1759969159763,0.00228796,4529.5,4529.3,4.75352944]
[1759969163474,0.45438796,4529.5,4529.3,4.75352944]
[1759969164770,0.00228796,4529.5,4529.3,4.75352944]
[1759969166175,0.00228796,4529.5,4529.4,0.39728]
[1759969168373,0.45438796,4529.5,4529.4,0.39728]
[1759969168574,0.65978796,4529.5,4529.4,1.32471944]
[1759969168774,0.65978796,4529.5,4529.4,1.54571944]
[1759969168974,0.45438796,4529.5,4529.4,1.54571944]
[1759969170266,0.00228796,4529.5,4529.4,1.54571944]
[1759969172083,0.4608,4530.0,4529.9,0.39724]
[1759969172275,0.4608,4530.0,4529.9,1.54567944]
[1759969172476,3.3321,4530.5,4530.4,0.39719]
[1759969172685,3.6599,4530.5,4530.4,1.54562944]
[1759969173077,3.66244347,4530.5,4530.4,1.54803887]
[1759969175084,0.45464347,4530.5,4530.4,1.54803887]
[1759969176388,0.7483,4531.4,4531.3,0.39711]
[1759969176585,0.7483,4531.4,4531.3,1.54554944]
[1759969176888,0.3278,4531.4,4531.3,1.54554944]
[1759969177592,0.32941891,4531.4,4531.3,1.54554944]
[1759969178996,0.00161891,4531.4,4531.3,1.54554944]
[1759969179592,0.33691891,4531.4,4531.3,1.54554944]
[1759969180889,0.00161891,4531.4,4531.3,1.54554944]
[1759969182394,0.4596,4532.0,4531.4,0.99277]
[1759969182593,0.4596,4532.0,4531.9,0.39706]
[1759969182893,0.4596,4532.0,4531.9,0.61806]
[1759969183295,0.46189483,4532.0,4531.9,0.61806]
[1759969183996,0.46189483,4532.0,4531.9,1.41778784]
[1759969186895,0.67379483,4532.0,4531.9,1.41778784]
[1759969187994,0.46189483,4532.0,4531.9,1.41778784]
[1759969188592,0.00229483,4532.0,4531.9,1.41778784]
[1759969189193,0.32109483,4532.0,4531.9,1.41778784]
[1759969189394,0.00229483,4532.0,4531.9,1.41778784]
[1759969190597,0.32109483,4532.0,4531.9,1.41778784]
[1759969191800,0.44659483,4532.0,4531.9,1.41778784]
[1759969193402,0.89189483,4532.0,4531.9,1.19678784]
[1759969193701,0.89189483,4532.0,4531.9,1.41778784]
[1759969193889,0.89189483,4532.0,4531.9,0.39706]
[1759969194193,0.89189483,4532.0,4531.9,1.41778784]
[1759969194997,0.89189483,4532.0,4531.9,1.19678784]
[1759969195198,0.89189483,4532.0,4531.9,1.41778784]
[1759969197397,0.67039483,4532.0,4531.9,1.41778784]
[1759969198506,0.89189483,4532.0,4531.9,1.41778784]
[1759969200499,0.89189483,4532.0,4531.9,1.19678784]
[1759969200697,0.89189483,4532.0,4531.9,1.41778784]
[1759969201603,0.89189483,4532.0,4531.9,1.19678784]
[1759969201806,0.89189483,4532.0,4531.9,1.41778784]
[1759969202105,0.89189483,4532.0,4531.9,0.39706]
[1759969202299,0.89189483,4532.0,4531.9,0.61806]
[1759969204001,0.67039483,4532.0,4531.9,0.61806]
[1759969204906,0.89189483,4532.0,4531.9,0.61806]
[1759969209507,0.44659483,4532.0,4531.9,0.61806]
[1759969209910,0.3402,4532.5,4532.4,0.39702]
[1759969210109,0.3402,4532.5,4532.4,2.12054784]
[1759969210312,3.24277915,4532.5,4532.4,2.12054784]
[1759969210704,3.44877915,4532.5,4532.4,1.86724784]
[1759969211009,3.4503811,4532.5,4532.4,1.86724784]
[1759969211205,3.4503811,4532.5,4532.4,2.12054784]
[1759969211513,3.0284811,4532.5,4532.4,2.12054784]
[1759969211814,3.2443811,4532.5,4532.4,2.12054784]
[1759969212012,3.5818811,4532.5,4532.4,2.12054784]
[1759969213503,2.4249311,4532.5,4532.4,2.29484308]
[1759969213708,0.5754,4532.9,4532.8,0.7897]
[1759969214015,0.7814,4532.9,4532.8,1.86720784]
[1759969214420,3.67294853,4532.9,4532.8,1.19670784]
[1759969214716,3.67547265,4532.9,4532.8,1.41770784]
[1759969215103,3.67547265,4532.9,4532.8,1.19670784]
[1759969215308,8.67547265,4532.9,4532.8,0.61798]
[1759969215503,8.67547265,4532.9,4532.8,1.41770784]
[1759969216406,3.67547265,4532.9,4532.8,2.20740784]
[1759969217023,3.67547265,4532.9,4532.8,1.86720784]
[1759969217314,3.67547265,4532.9,4532.8,1.64400784]
[1759969217516,2.91607265,4532.9,4532.8,3.00713568]
[1759969217811,0.02452412,4532.9,4532.8,2.20740784]
[1759969218016,0.02452412,4532.9,4532.8,6.21493568]
[1759969218314,0.57792412,4532.9,4532.8,5.41520784]
[1759969218712,0.02452412,4532.9,4532.8,5.41520784]
[1759969218908,0.02452412,4532.9,4532.8,5.19420784]
[1759969219108,0.02452412,4532.9,4532.8,5.41520784]
[1759969219410,0.36202412,4532.9,4532.8,5.41520784]
[1759969220112,0.02452412,4532.9,4532.8,5.41520784]
[1759969220310,0.02452412,4532.9,4532.8,6.21493568]
[1759969220512,0.02452412,4532.9,4532.8,5.41520784]
[1759969220712,0.57792412,4532.9,4532.8,4.39448]
[1759969220918,0.78392412,4532.9,4532.8,1.86720784]
[1759969221717,0.78392412,4532.9,4532.8,1.64400784]
[1759969222315,0.78392412,4532.9,4532.8,1.42300784]
[1759969222513,3.69332299,4532.9,4532.8,1.64400784]
[1759969223918,3.69332299,4532.9,4532.8,1.19670784]
[1759969224210,3.69332299,4532.9,4532.8,1.41770784]
[1759969224613,3.69332299,4532.9,4532.8,1.19670784]
[1759969224819,3.69332299,4532.9,4532.8,1.41770784]
[1759969225013,3.69332299,4532.9,4532.8,0.39698]
[1759969225213,8.69332299,4532.9,4532.8,0.39698]
[1759969225407,8.69332299,4532.9,4532.7,0.39698]
[1759969225613,0.888,4532.0,4531.9,1.9831118]
[1759969225815,0.888,4532.0,4531.9,0.61805]
[1759969226116,3.81664638,4532.0,4531.9,0.39705]
[1759969226514,3.81664638,4532.0,4531.9,0.61805]
[1759969227909,3.81664638,4532.0,4531.9,0.84435]
[1759969228815,3.81664638,4532.0,4531.9,0.61805]
[1759969229007,3.81664638,4532.0,4531.9,0.39705]
[1759969229213,8.81664638,4532.0,4531.9,0.39705]
[1759969229814,8.81664638,4532.0,4531.8,0.79972784]
[1759969229815,0.3375,4531.9,4531.8,0.79972784]
[1759969230021,1.15646,4531.9,4531.8,0.79972784]
[1759969230315,4.07082989,4531.9,4531.8,0.79972784]
[1759969231018,3.67376989,4531.9,4531.8,1.02602784]
[1759969233919,3.67376989,4531.9,4531.8,0.79972784]
[1759969235520,3.67376989,4531.9,4531.8,1.24922784]
[1759969236822,3.67376989,4531.9,4531.8,0.4495]
[1759969237019,3.67376989,4531.9,4531.8,1.24922784]
[1759969237824,3.67376989,4531.9,4531.8,1.02602784]
[1759969238420,3.67376989,4531.9,4531.8,1.24922784]
[1759969238827,3.7311,4532.3,4532.2,0.4219]
[1759969239019,3.7311,4532.3,4532.2,2.16105784]
[1759969239319,6.59702905,4532.3,4532.2,2.16105784]
[1759969239626,6.80422905,4532.3,4532.2,2.16105784]
[1759969241216,3.59642905,4532.3,4532.2,2.16105784]
[1759969241625,3.59642905,4532.3,4532.2,1.83965784]
[1759969242326,3.38922905,4532.3,4532.2,2.16105784]
[1759969242526,2.86592905,4532.3,4532.2,2.16105784]
[1759969242829,3.2078,4532.8,4532.2,2.16105784]
[1759969242830,0.3064,4532.6,4532.5,1.16441]
[1759969243123,3.16353219,4532.6,4532.5,2.18513784]
[1759969243718,3.36923219,4532.6,4532.5,2.18513784]
[1759969244119,3.58983219,4532.6,4532.5,1.63833784]
[1759969245028,3.58983219,4532.6,4532.5,0.79972784]
[1759969245218,0.8951,4532.5,4532.4,0.39701]
[1759969245424,0.8951,4532.5,4532.4,0.61801]
[1759969245624,3.71589536,4532.5,4532.4,0.61801]
[1759969245929,0.7618,4531.6,4531.5,3.8255]
[1759969246122,0.7618,4531.6,4531.5,3.8259]
[1759969246421,0.339,4531.0,4530.9,3.12938235]
[1759969246626,0.8951,4531.0,4530.9,1.76432055]
[1759969246829,3.81265529,4531.0,4530.9,1.98032055]
[1759969247129,3.81265529,4531.0,4530.9,5.51892055]
[1759969247834,3.81265529,4531.0,4530.9,5.18812055]
[1759969249029,3.81265529,4531.0,4530.9,5.51892055]
[1759969250431,3.81265529,4531.0,4530.9,5.29792055]
[1759969250631,3.81265529,4531.0,4530.9,5.51892055]
[1759969250833,3.81265529,4531.0,4530.9,1.54372055]
[1759969251839,3.81265529,4531.0,4530.9,0.92557055]
[1759969252132,3.81265529,4531.0,4530.4,3.21020943]
[1759969252326,0.8951,4530.5,4530.4,4.75356998]
[1759969252526,0.8951,4530.5,4530.4,4.97456998]
[1759969252724,0.8951,4530.5,4530.4,4.75396998]
[1759969253131,0.8951,4530.5,4530.4,3.60739943]
[1759969253435,0.8951,4530.5,4530.4,3.82839943]
[1759969253629,0.8951,4530.5,4530.4,3.60739943]
[1759969253830,0.8951,4530.5,4530.4,3.82839943]